fUST/lending_fUST_20251010
["ID","MTS","AMOUNT","RATE_DAILY","PERIOD"]
[390634562,1760107840094,-500.0,0.00017899,2]
[390634563,1760107840103,-500.0,0.00017899,2]
[390634564,1760107840113,-4677.76407601,0.000179,2]
[390634565,1760107840175,-26353.12426157,0.000179,2]
[390634566,1760107840185,-306.39161114,0.000179,2]
[390634567,1760107840194,-391.98211811,0.000179,2]
[390634568,1760107840204,-438.07,0.0001799,3]
[390634569,1760107840213,-29665.43200918,0.00018,2]
[390634572,1760107840235,-500.0,0.00017899,2]
[390634573,1760107840245,-500.0,0.00017899,2]
[390634574,1760107840255,-606.97244131,0.00018,2]
[390634575,1760107840272,-426.84380924,0.00017899,2]
[390634576,1760107840280,-1518.50575019,0.00018,2]
[390634596,1760107846101,-219.03,0.0001799,3]
[390634597,1760107846111,-7886.29,0.00018,2]
[390634605,1760108007290,3000.0,0.00024,30]
[390634606,1760108054832,50000.0,0.00024,30]
[390634607,1760108185882,714.22,0.00028767,120]
[390634611,1760108243207,9000.0,0.000156,2]
[390634677,1760109033097,203.033002,0.00017,10]
[390634714,1760109038567,-307.6466183,0.00016713,2]
[390634716,1760109038577,-758.3783817,0.00016713,2]
[390634724,1760109038641,-1199.8,0.00016713,2]
[390634750,1760109038885,-18345.78887497,0.00016713,2]
[390634752,1760109038896,-200.0,0.00016813,2]
[390634754,1760109038907,-218.128692,0.00016813,2]
[390634756,1760109038917,-398.79120328,0.00016813,2]
[390634758,1760109038927,-1508.68410218,0.0001685,2]
[390634760,1760109038937,-300.0,0.00016999,2]
[390634762,1760109038948,-30000.0,0.00017,2]
[390634764,1760109038958,-353.79361105,0.00017313,2]
[390634766,1760109038968,-238.53,0.0001751,2]
[390634768,1760109038979,-1463.82071191,0.00017654,2]
[390634770,1760109038990,-1041.66666667,0.00017661,2]
[390634773,1760109038999,-184.63647817,0.000177,2]
[390634775,1760109039009,-160.0,0.00017784,2]
[390634776,1760109039019,-41654.0,0.000178,2]
[390634779,1760109039029,-446.3028652,0.000178,2]
[390634780,1760109039039,-234.32063665,0.00017879,2]
[390634782,1760109039048,-160.0,0.00017879,2]
[390634784,1760109039058,-298.03512572,0.0001788,2]
[390634786,1760109039068,-160.0,0.00017882,2]
[390634788,1760109039077,-3169.57007987,0.000179,2]
[390634790,1760109039087,-369.63491057,0.000179,2]
[390634792,1760109039099,-399.94060379,0.00017913,2]
[390634794,1760109039109,-500.0,0.00017973,2]
[390634796,1760109039119,-500.0,0.00017973,2]
[390634798,1760109039129,-500.0,0.00017973,2]
[390634800,1760109039138,-500.86991837,0.00017973,2]
[390634802,1760109039148,-500.0,0.00017973,2]
[390634804,1760109039158,-500.0,0.00017973,2]
[390634806,1760109039168,-161.86847584,0.00017973,2]
[390634808,1760109039178,-500.0,0.00017973,2]
[390634810,1760109039188,-500.0,0.00017973,2]
[390634813,1760109039199,-500.0,0.00017973,2]
[390634814,1760109039209,-500.0,0.00017973,2]
[390634817,1760109039218,-500.0,0.00017973,2]
[390634819,1760109039228,-500.0,0.00017973,2]
[390634820,1760109039238,-157.30324439,0.00017973,2]
[390634823,1760109039247,-307.1856986,0.00017973,2]
[390634824,1760109039257,-328.55,0.0001799,3]
[390634827,1760109039266,-164.27,0.0001799,3]
[390634828,1760109039276,-492.86,0.0001799,3]
[390634831,1760109039286,-890.61339424,0.0001799,2]
[390634833,1760109039296,-158.53820103,0.00017999,2]
[390634834,1760109039306,-146603.39501828,0.00018,2]
[390634836,1760109039316,-285.57192612,0.00018,2]
[390634838,1760109039325,-1045.00110549,0.00018,2]
[390634840,1760109039335,-202.13642157,0.00018,2]
[390634842,1760109039347,-201.36920788,0.00018,2]
[390634844,1760109039356,-452.85128755,0.00018,2]
[390634847,1760109039367,-199.75,0.00018,2]
[390634849,1760109039376,-151.0,0.00018,2]
[390634851,1760109039386,-151.0,0.00018,2]
[390634853,1760109039396,-151.0,0.00018,2]
[390634854,1760109039405,-151.785123,0.00018,2]
[390634856,1760109039415,-152.003691,0.00018,2]
[390634858,1760109039425,-151.0,0.00018,2]
[390634860,1760109039434,-151.921519,0.00018,2]
[390634862,1760109039444,-151.0,0.00018,2]
[390634864,1760109039454,-151.0,0.00018,2]
[390634866,1760109039466,-152.357197,0.00018,2]
[390634868,1760109039480,-151.0,0.00018,2]
[390634870,1760109039490,-151.0,0.00018,2]
[390634872,1760109039499,-151.0,0.00018,2]
[390634874,1760109039510,-151.0,0.00018,2]
[390634876,1760109039521,-151.0,0.00018,2]
[390634878,1760109039531,-151.0,0.00018,2]
[390634880,1760109039542,-151.0,0.00018,2]
[390634882,1760109039554,-151.638751,0.00018,2]
[390634884,1760109039563,-151.0,0.00018,2]
[390634886,1760109039573,-151.0,0.00018,2]
[390634888,1760109039583,-39151.57299446,0.00018,2]
[390634890,1760109039594,-151.859235,0.00018,2]
[390634892,1760109039605,-151.0,0.00018,2]
[390634894,1760109039615,-151.0,0.00018,2]
[390634896,1760109039625,-151.0,0.00018,2]
[390634898,1760109039634,-151.737359,0.00018,2]
[390634900,1760109039644,-151.0,0.00018,2]
[390634902,1760109039654,-154.141836,0.00018,2]
[390634904,1760109039663,-151.0,0.00018,2]
[390634906,1760109039672,-151.0,0.00018,2]
[390634908,1760109039683,-153.16741,0.00018,2]
[390634910,1760109039692,-151.0,0.00018,2]
[390634912,1760109039701,-151.0,0.00018,2]
[390634914,1760109039712,-151.0,0.00018,2]
[390634916,1760109039722,-151.0,0.00018,2]
[390634918,1760109039732,-151.0,0.00018,2]
[390634920,1760109039742,-151.0,0.00018,2]
[390634922,1760109039751,-151.0,0.00018,2]
[390634924,1760109039761,-151.0,0.00018,2]
[390634927,1760109039770,-151.0,0.00018,2]
[390634930,1760109039782,-151.0,0.00018,2]
[390634933,1760109039791,-151.0,0.00018,2]
[390634935,1760109039800,-151.0,0.00018,2]
[390634938,1760109039809,-151.0,0.00018,2]
[390634940,1760109039819,-151.321248,0.00018,2]
[390634943,1760109039828,-151.0,0.00018,2]
[390634945,1760109039837,-151.0,0.00018,2]
[390634947,1760109039849,-151.0,0.00018,2]
[390634950,1760109039858,-151.0,0.00018,2]
[390634953,1760109039867,-151.506493,0.00018,2]
[390634955,1760109039876,-211.222275,0.00018,2]
[390634957,1760109039886,-211.222275,0.00018,2]
[390634959,1760109039895,-211.222275,0.00018,2]
[390634961,1760109039904,-211.222275,0.00018,2]
[390634963,1760109039913,-211.222275,0.00018,2]
[390634965,1760109039923,-211.222275,0.00018,2]
[390634968,1760109039932,-211.222275,0.00018,2]
[390634970,1760109039941,-211.222275,0.00018,2]
[390634972,1760109039950,-151.0,0.00018,2]
[390634974,1760109039960,-301.99999998,0.00018,2]
[390634976,1760109039969,-4461.11,0.00018002,2]
[390634978,1760109039978,-151.0,0.00018002,2]
[390634980,1760109039987,-151.0,0.00018002,2]
[390634982,1760109039996,-153.026028,0.00018002,2]
[390634984,1760109040006,-151.0,0.00018002,2]
[390634986,1760109040016,-2457.222958,0.00018002,2]
[390634988,1760109040025,-151.0,0.00018002,2]
[390634990,1760109040035,-2457.222958,0.00018002,2]
[390634992,1760109040045,-2457.222958,0.00018002,2]
[390634994,1760109040054,-151.0,0.00018002,2]
[390634996,1760109040063,-2457.222958,0.00018002,2]
[390634998,1760109040072,-151.555572,0.00018002,2]
[390635000,1760109040081,-255.287041,0.00018002,2]
[390635002,1760109040090,-255.287041,0.00018002,2]
[390635003,1760109040100,-255.287041,0.00018002,2]
[390635005,1760109040108,-255.287041,0.00018002,2]
[390635007,1760109040118,-151.0,0.00018002,2]
[390635009,1760109040127,-151.824686,0.00018002,2]
[390635011,1760109040137,-151.0,0.00018002,2]
[390635013,1760109040146,-318.456392,0.00018002,2]
[390635015,1760109040155,-151.0,0.00018002,2]
[390635017,1760109040165,-151.0,0.00018002,2]
[390635019,1760109040175,-318.456392,0.00018002,2]
[390635021,1760109040184,-318.456392,0.00018002,2]
[390635023,1760109040193,-151.0,0.00018002,2]
[390635025,1760109040202,-318.456392,0.00018002,2]
[390635027,1760109040211,-345.478907,0.00018002,2]
[390635029,1760109040220,-345.478907,0.00018002,2]
[390635031,1760109040229,-345.478907,0.00018002,2]
[390635033,1760109040238,-345.478907,0.00018002,2]
[390635035,1760109040247,-154.856397,0.00018013,2]
[390635037,1760109040256,-151.0,0.00018013,2]
[390635039,1760109040266,-151.0,0.00018013,2]
[390635041,1760109040275,-151.0,0.00018013,2]
[390635043,1760109040284,-261.392589,0.00018013,2]
[390635062,1760109040461,-156.091992,0.00018013,2]
[390635064,1760109040473,-151.0,0.00018013,2]
[390635066,1760109040482,-151.0,0.00018013,2]
[390635068,1760109040492,-151.0,0.00018013,2]
[390635070,1760109040501,-151.0,0.00018013,2]
[390635072,1760109040510,-151.0,0.00018013,2]
[390635074,1760109040520,-151.0,0.00018013,2]
[390635076,1760109040530,-151.0,0.00018013,2]
[390635078,1760109040539,-151.0,0.00018013,2]
[390635080,1760109040547,-211.222275,0.00018013,2]
[390635082,1760109040557,-211.222275,0.00018013,2]
[390635084,1760109040565,-211.222275,0.00018013,2]
[390635086,1760109040574,-211.222275,0.00018013,2]
[390635088,1760109040583,-250.0,0.00018013,2]
[390635090,1760109040593,-150.083,0.00018013,2]
[390635092,1760109040602,-212.814,0.00018013,2]
[390635094,1760109040611,-229.188,0.00018013,2]
[390635096,1760109040620,-250.0,0.00018013,2]
[390635098,1760109040629,-263.604,0.00018013,2]
[390635100,1760109040638,-294.02,0.00018013,2]
[390635102,1760109040648,-980.0,0.00018013,2]
[390635104,1760109040657,-2159.0,0.00018013,2]
[390635106,1760109040666,-630.0,0.00018013,2]
[390635108,1760109040675,-411.0,0.00018013,2]
[390635110,1760109040685,-414.167,0.00018013,2]
[390635112,1760109040694,-500.0,0.00018013,2]
[390635114,1760109040704,-151.0,0.00018046,2]
[390635116,1760109040713,-151.0,0.00018046,2]
[390635117,1760109040723,-151.0,0.00018046,2]
[390635120,1760109040732,-151.0,0.00018046,2]
[390635121,1760109040742,-151.0,0.00018046,2]
[390635124,1760109040751,-151.0,0.00018046,2]
[390635126,1760109040761,-151.0,0.00018046,2]
[390635127,1760109040770,-151.0,0.00018046,2]
[390635129,1760109040779,-152.031456,0.00018046,2]
[390635131,1760109040791,-286.789487,0.00018046,2]
[390635133,1760109040802,-2457.222958,0.00018046,2]
[390635135,1760109040811,-151.0,0.00018046,2]
[390635137,1760109040821,-2457.222958,0.00018046,2]
[390635139,1760109040830,-2457.222958,0.00018046,2]
[390635141,1760109040839,-151.0,0.00018046,2]
[390635143,1760109040851,-2457.222958,0.00018046,2]
[390635145,1760109040861,-255.287041,0.00018046,2]
[390635147,1760109040871,-255.287041,0.00018046,2]
[390635149,1760109040880,-255.287041,0.00018046,2]
[390635151,1760109040890,-255.287041,0.00018046,2]
[390635153,1760109040900,-151.0,0.00018046,2]
[390635155,1760109040910,-151.0,0.00018046,2]
[390635157,1760109040919,-151.0,0.00018046,2]
[390635159,1760109040928,-318.456392,0.00018046,2]
[390635161,1760109040939,-151.0,0.00018046,2]
[390635163,1760109040948,-318.456392,0.00018046,2]
[390635165,1760109040958,-185.618188,0.00018046,2]
[390635167,1760109040967,-318.456392,0.00018046,2]
[390635169,1760109040976,-318.456392,0.00018046,2]
[390635171,1760109040986,-345.478907,0.00018046,2]
[390635173,1760109040995,-345.478907,0.00018046,2]
[390635175,1760109041006,-345.478907,0.00018046,2]
[390635177,1760109041016,-345.478907,0.00018046,2]
[390635179,1760109041026,-170.271576,0.00018046,2]
[390635181,1760109041036,-151.0,0.00018046,2]
[390635183,1760109041047,-151.0,0.00018046,2]
[390635185,1760109041057,-211.222275,0.00018046,2]
[390635187,1760109041068,-211.222275,0.00018046,2]
[390635189,1760109041079,-211.222275,0.00018046,2]
[390635191,1760109041090,-211.222275,0.00018046,2]
[390635193,1760109041106,-4195.0,0.00018067,2]
[390635195,1760109041117,-369.63491057,0.00018075,2]
[390635197,1760109041128,-151.0,0.00018082,2]
[390635199,1760109041141,-151.0,0.00018082,2]
[390635201,1760109041152,-151.0,0.00018082,2]
[390635203,1760109041163,-151.0,0.00018082,2]
[390635205,1760109041174,-309.5669343,0.00018082,2]
[390635207,1760109041185,-923.0,0.00018087,2]
[390635209,1760109041195,-923.0,0.0001809,2]
[390635211,1760109041205,-200.0,0.000181,2]
[390635214,1760109041216,-59504.28941906,0.000181,2]
[390635216,1760109041226,-232.792572,0.000181,2]
[390635217,1760109041238,-232.792572,0.000181,2]
[390635219,1760109041248,-232.792572,0.000181,2]
[390635221,1760109041258,-232.792572,0.000181,2]
[390635224,1760109041269,-151.0,0.000181,2]
[390635226,1760109041279,-151.0,0.000181,2]
[390635228,1760109041289,-151.681857,0.000181,2]
[390635230,1760109041298,-151.0,0.000181,2]
[390635232,1760109041308,-151.0,0.000181,2]
[390635234,1760109041318,-151.0,0.000181,2]
[390635235,1760109041327,-151.0,0.000181,2]
[390635236,1760109041338,-151.0,0.000181,2]
[390635237,1760109041355,-151.0,0.000181,2]
[390635238,1760109041365,-151.0,0.000181,2]
[390635239,1760109041376,-151.0,0.000181,2]
[390635240,1760109041387,-151.0,0.000181,2]
[390635241,1760109041397,-151.0,0.000181,2]
[390635242,1760109041408,-153.085781,0.000181,2]
[390635243,1760109041419,-151.402919,0.000181,2]
[390635244,1760109041430,-151.0,0.000181,2]
[390635245,1760109041441,-151.0,0.000181,2]
[390635246,1760109041451,-151.0,0.000181,2]
[390635247,1760109041464,-151.0,0.000181,2]
[390635248,1760109041474,-151.0,0.000181,2]
[390635249,1760109041484,-151.0,0.000181,2]
[390635250,1760109041493,-151.0,0.000181,2]
[390635251,1760109041508,-151.0,0.000181,2]
[390635252,1760109041519,-151.0,0.000181,2]
[390635253,1760109041530,-151.0,0.000181,2]
[390635254,1760109041540,-151.0,0.000181,2]
[390635255,1760109041551,-151.0,0.000181,2]
[390635256,1760109041562,-151.0,0.000181,2]
[390635257,1760109041571,-151.0,0.000181,2]
[390635258,1760109041581,-188.41805,0.000181,2]
[390635259,1760109041590,-188.41805,0.000181,2]
[390635260,1760109041603,-188.41805,0.000181,2]
[390635262,1760109041613,-188.41805,0.000181,2]
[390635263,1760109041622,-188.41805,0.000181,2]
[390635265,1760109041631,-188.41805,0.000181,2]
[390635267,1760109041641,-188.41805,0.000181,2]
[390635269,1760109041651,-188.41805,0.000181,2]
[390635271,1760109041661,-151.0,0.000181,2]
[390635273,1760109041671,-151.0,0.000181,2]
[390635275,1760109041680,-151.0,0.000181,2]
[390635277,1760109041690,-151.0,0.000181,2]
[390635279,1760109041700,-151.0,0.000181,2]
[390635281,1760109041710,-244.097566,0.000181,2]
[390635283,1760109041719,-151.0,0.000181,2]
[390635285,1760109041729,-151.0,0.000181,2]
[390635287,1760109041738,-151.0,0.000181,2]
[390635289,1760109041747,-151.0,0.000181,2]
[390635291,1760109041757,-151.0,0.000181,2]
[390635293,1760109041766,-151.0,0.000181,2]
[390635295,1760109041776,-151.0,0.000181,2]
[390635297,1760109041785,-208.468505,0.000181,2]
[390635299,1760109041795,-2457.222958,0.000181,2]
[390635301,1760109041805,-2457.222958,0.000181,2]
[390635303,1760109041815,-2457.222958,0.000181,2]
[390635305,1760109041825,-2457.222958,0.000181,2]
[390635306,1760109041834,-2457.222958,0.000181,2]
[390635308,1760109041847,-2457.222958,0.000181,2]
[390635310,1760109041856,-2457.222958,0.000181,2]
[390635312,1760109041866,-2457.222958,0.000181,2]
[390635314,1760109041876,-255.287041,0.000181,2]
[390635316,1760109041885,-255.287041,0.000181,2]
[390635318,1760109041895,-255.287041,0.000181,2]
[390635320,1760109041904,-255.287041,0.000181,2]
[390635322,1760109041914,-255.287041,0.000181,2]
[390635324,1760109041924,-255.287041,0.000181,2]
[390635326,1760109041933,-255.287041,0.000181,2]
[390635328,1760109041942,-255.287041,0.000181,2]
[390635330,1760109041952,-1000.0,0.000181,2]
[390635332,1760109041961,-1000.0,0.000181,2]
[390635333,1760109041971,-1000.0,0.000181,2]
[390635335,1760109041981,-202.761572,0.000181,2]
[390635337,1760109041990,-151.0,0.000181,2]
[390635339,1760109041999,-151.0,0.000181,2]
[390635341,1760109042008,-151.0,0.000181,2]
[390635343,1760109042018,-244.37532,0.000181,2]
[390635345,1760109042027,-151.0,0.000181,2]
[390635347,1760109042036,-151.0,0.000181,2]
[390635349,1760109042045,-318.456392,0.000181,2]
[390635351,1760109042055,-318.456392,0.000181,2]
[390635353,1760109042064,-151.0,0.000181,2]
[390635355,1760109042074,-318.456392,0.000181,2]
[390635357,1760109042083,-318.456392,0.000181,2]
[390635359,1760109042092,-151.0,0.000181,2]
[390635361,1760109042105,-318.456392,0.000181,2]
[390635363,1760109042114,-318.456392,0.000181,2]
[390635365,1760109042123,-318.456392,0.000181,2]
[390635366,1760109042132,-318.456392,0.000181,2]
[390635368,1760109042143,-345.478907,0.000181,2]
[390635369,1760109042152,-345.478907,0.000181,2]
[390635371,1760109042161,-345.478907,0.000181,2]
[390635373,1760109042171,-345.478907,0.000181,2]
[390635375,1760109042180,-345.478907,0.000181,2]
[390635377,1760109042190,-345.478907,0.000181,2]
[390635379,1760109042199,-345.478907,0.000181,2]
[390635381,1760109042207,-345.478907,0.000181,2]
[390635383,1760109042217,-196.875857,0.000181,2]
[390635385,1760109042226,-151.0,0.000181,2]
[390635387,1760109042235,-151.0,0.000181,2]
[390635388,1760109042244,-151.0,0.000181,2]
[390635390,1760109042254,-151.0,0.000181,2]
[390635392,1760109042263,-211.222275,0.000181,2]
[390635394,1760109042272,-211.222275,0.000181,2]
[390635396,1760109042281,-211.222275,0.000181,2]
[390635398,1760109042291,-211.222275,0.000181,2]
[390635400,1760109042300,-288.620411,0.00018111,2]
[390635402,1760109042309,-151.0,0.00018111,2]
[390635404,1760109042318,-151.0,0.00018111,2]
[390635406,1760109042327,-923.0,0.00018111,2]
[390635408,1760109042337,-600.0,0.00018144,2]
[390635410,1760109042348,-157.1366965,0.00018146,2]
[390635412,1760109042357,-1524.9164023,0.00018146,2]
[390635414,1760109042367,-786.3012372,0.00018146,2]
[390635415,1760109042376,-151.0,0.00018146,2]
[390635417,1760109042386,-152.984232,0.00018146,2]
[390635419,1760109042395,-151.0,0.00018146,2]
[390635421,1760109042404,-239.06881,0.00018146,2]
[390635423,1760109042413,-151.0,0.00018146,2]
[390635425,1760109042423,-151.0,0.00018146,2]
[390635427,1760109042432,-151.0,0.00018146,2]
[390635429,1760109042442,-151.0,0.00018146,2]
[390635431,1760109042452,-2457.222958,0.00018146,2]
[390635433,1760109042462,-2457.222958,0.00018146,2]
[390635435,1760109042475,-2457.222958,0.00018146,2]
[390635437,1760109042485,-2457.222963,0.00018146,2]
[390635439,1760109042494,-255.287041,0.00018146,2]
[390635441,1760109042504,-255.287041,0.00018146,2]
[390635443,1760109042514,-255.287041,0.00018146,2]
[390635445,1760109042522,-255.287043,0.00018146,2]
[390635446,1760109042532,-151.0,0.00018146,2]
[390635448,1760109042541,-151.0,0.00018146,2]
[390635450,1760109042550,-318.456392,0.00018146,2]
[390635452,1760109042560,-318.456392,0.00018146,2]
[390635454,1760109042569,-151.0,0.00018146,2]
[390635456,1760109042579,-318.456392,0.00018146,2]
[390635458,1760109042588,-318.456402,0.00018146,2]
[390635460,1760109042600,-345.478907,0.00018146,2]
[390635462,1760109042610,-345.478907,0.00018146,2]
[390635463,1760109042619,-345.478907,0.00018146,2]
[390635465,1760109042629,-345.478904,0.00018146,2]
[390635467,1760109042638,-500.0,0.00018162,2]
[390635469,1760109042647,-3090.323,0.00018162,2]
[390635471,1760109042656,-151.0,0.00018162,2]
[390635473,1760109042666,-151.0,0.00018162,2]
[390635475,1760109042675,-151.0,0.00018162,2]
[390635477,1760109042684,-234.86366,0.00018162,2]
[390635479,1760109042694,-151.0,0.00018162,2]
[390635481,1760109042703,-188.41805,0.00018162,2]
[390635482,1760109042713,-188.41805,0.00018162,2]
[390635484,1760109042722,-188.41805,0.00018162,2]
[390635486,1760109042731,-188.41805,0.00018162,2]
[390635488,1760109042740,-151.0,0.00018162,2]
[390635491,1760109042749,-151.898984,0.00018162,2]
[390635493,1760109042760,-285.57192612,0.000182,2]
[390635495,1760109042770,-1045.00110549,0.000182,2]
[390635497,1760109042779,-202.13642157,0.000182,2]
[390635499,1760109042788,-201.36920788,0.000182,2]
[390635501,1760109042797,-452.85128755,0.000182,2]
[390635503,1760109042806,-199.75,0.000182,2]
[390635505,1760109042815,-247.984915,0.000182,2]
[390635507,1760109042825,-300.0,0.0001821,2]
[390635508,1760109042834,-300.0,0.0001821,2]
[390635511,1760109042842,-300.0,0.0001821,2]
[390635513,1760109042853,-300.0,0.0001821,2]
[390635516,1760109042862,-300.0,0.0001821,2]
[390635518,1760109042873,-300.0,0.0001821,2]
[390635520,1760109042882,-300.0,0.0001821,2]
[390635523,1760109042891,-300.0,0.0001821,2]
[390635526,1760109042901,-300.0,0.0001821,2]
[390635528,1760109042910,-300.0,0.0001821,2]
[390635530,1760109042919,-300.0,0.0001821,2]
[390635532,1760109042928,-300.0,0.0001821,2]
[390635534,1760109042938,-300.0,0.0001821,2]
[390635536,1760109042947,-300.0,0.0001821,2]
[390635538,1760109042956,-300.0,0.0001821,2]
[390635541,1760109042967,-923.0,0.00018241,2]
[390635544,1760109042977,-369.63491057,0.0001825,2]
[390635546,1760109042986,-500.0,0.00018287,2]
[390635547,1760109042996,-151.0,0.000183,2]
[390635549,1760109043005,-151.0,0.000183,2]
[390635551,1760109043015,-151.0,0.000183,2]
[390635553,1760109043024,-151.0,0.000183,2]
[390635556,1760109043034,-151.0,0.000183,2]
[390635559,1760109043043,-151.0,0.000183,2]
[390635561,1760109043052,-151.0,0.000183,2]
[390635564,1760109043062,-151.0,0.000183,2]
[390635567,1760109043071,-188.41805,0.000183,2]
[390635569,1760109043081,-188.41805,0.000183,2]
[390635572,1760109043090,-188.41805,0.000183,2]
[390635573,1760109043102,-188.41805,0.000183,2]
[390635575,1760109043112,-3191.86149303,0.00018333,2]
[390635577,1760109043121,-601.56279864,0.00018333,2]
[390635579,1760109043130,-250.0,0.00018352,2]
[390635581,1760109043140,-285.57192612,0.000184,2]
[390635583,1760109043150,-1045.00110549,0.000184,2]
[390635585,1760109043160,-201.36920788,0.000184,2]
[390635587,1760109043170,-452.85128755,0.000184,2]
[390635589,1760109043179,-151.0,0.000184,2]
[390635591,1760109043189,-153.062202,0.000184,2]
[390635593,1760109043198,-232.792572,0.000184,2]
[390635595,1760109043207,-232.792572,0.000184,2]
[390635597,1760109043216,-232.792572,0.000184,2]
[390635599,1760109043225,-232.792572,0.000184,2]
[390635600,1760109043234,-151.0,0.000184,2]
[390635602,1760109043243,-151.386704,0.000184,2]
[390635604,1760109043252,-151.0,0.000184,2]
[390635606,1760109043261,-151.0,0.000184,2]
[390635608,1760109043271,-161.91754,0.000184,2]
[390635610,1760109043280,-151.0,0.000184,2]
[390635612,1760109043289,-151.0,0.000184,2]
[390635614,1760109043298,-151.0,0.000184,2]
[390635615,1760109043307,-151.0,0.000184,2]
[390635617,1760109043316,-151.0,0.000184,2]
[390635619,1760109043325,-180.898313,0.000184,2]
[390635621,1760109043334,-151.0,0.000184,2]
[390635623,1760109043346,-188.41805,0.000184,2]
[390635625,1760109043355,-188.41805,0.000184,2]
[390635626,1760109043364,-188.41805,0.000184,2]
[390635628,1760109043374,-188.418055,0.000184,2]
[390635630,1760109043383,-170.57967988,0.00018413,2]
[390635632,1760109043392,-369.63491057,0.00018425,2]
[390635634,1760109043401,-790.99,0.00018449,2]
[390635636,1760109043410,-923.0,0.00018453,2]
[390635638,1760109043419,-500.86697932,0.00018473,2]
[390635640,1760109043428,-500.0,0.00018473,2]
[390635642,1760109043437,-500.0,0.00018473,2]
[390635643,1760109043446,-467.37987447,0.00018473,2]
[390635645,1760109043455,-500.0,0.00018473,2]
[390635647,1760109043470,-500.0,0.00018473,2]
[390635649,1760109043480,-285.57192612,0.000185,2]
[390635651,1760109043490,-1045.00110549,0.000185,2]
[390635653,1760109043499,-271994.11673842,0.000185,7]
[390635655,1760109043509,-201.36920788,0.000185,2]
[390635657,1760109043519,-452.85128755,0.000185,2]
[390635659,1760109043528,-232.792572,0.000185,2]
[390635661,1760109043538,-232.792572,0.000185,2]
[390635663,1760109043551,-232.792572,0.000185,2]
[390635665,1760109043560,-232.792572,0.000185,2]
[390635667,1760109043570,-151.0,0.000185,2]
[390635669,1760109043579,-262.91856015,0.000185,2]
[390635671,1760109043588,-151.0,0.000185,2]
[390635672,1760109043600,-151.0,0.000185,2]
[390635674,1760109043609,-151.0,0.000185,2]
[390635676,1760109043619,-151.0,0.000185,2]
[390635678,1760109043628,-923.0,0.0001851,2]
[390635680,1760109043638,-446.08759654,0.00018513,2]
[390635682,1760109043647,-1104.48932129,0.00018521,2]
[390635684,1760109043657,-1000.0,0.00018521,2]
[390635686,1760109043666,-1000.0,0.00018521,2]
[390635688,1760109043676,-500.0,0.00018521,2]
[390635690,1760109043686,-1000.0,0.00018521,2]
[390635692,1760109043695,-1000.0,0.00018521,2]
[390635694,1760109043704,-1005.09056079,0.00018521,2]